[Event "*** Titled Tuesday Blitz"]
[Site "Chess.com"]
[Date "2020.04.07"]
[Round "4"]
[White "mbojan"]
[Black "mc4chess"]
[Result "1-0"]
[WhiteElo "2693"]
[BlackElo "2366"]
[TimeControl "180+1"]
[EndTime "13:40:43 PDT"]
[Termination "mbojan won on time"]

1. e4 {[%clk 0:03:00.9]} 1... c5 {[%clk 0:02:27.8]} 2. Nf3 {[%clk 0:02:55.9]}
2... e6 {[%clk 0:02:28.2]} 3. d4 {[%clk 0:02:53.6]} 3... cxd4 {[%clk 0:02:29.1]}
4. Nxd4 {[%clk 0:02:54.5]} 4... a6 {[%clk 0:02:29.6]} 5. c4 {[%clk 0:02:54.9]}
5... Nf6 {[%clk 0:02:29.3]} 6. Nc3 {[%clk 0:02:55.4]} 6... Qc7 {[%clk
0:02:29.9]} 7. Be2 {[%clk 0:02:55.6]} 7... Nc6 {[%clk 0:02:19.2]} 8. O-O {[%clk
0:02:55.1]} 8... Be7 {[%clk 0:02:16.4]} 9. Be3 {[%clk 0:02:52.7]} 9... O-O
{[%clk 0:02:15.5]} 10. Rc1 {[%clk 0:02:51.2]} 10... Nxd4 {[%clk 0:02:05.6]} 11.
Qxd4 {[%clk 0:02:48.3]} 11... d6 {[%clk 0:02:06.1]} 12. Rfd1 {[%clk 0:02:46.4]}
12... Bd7 {[%clk 0:02:04.3]} 13. f3 {[%clk 0:02:46]} 13... Rac8 {[%clk
0:02:04.1]} 14. Bf1 {[%clk 0:02:45.9]} 14... Qb8 {[%clk 0:02:03.5]} 15. Qa7
{[%clk 0:02:42.7]} 15... Qxa7 {[%clk 0:01:35.9]} 16. Bxa7 {[%clk 0:02:43.6]}
16... Bc6 {[%clk 0:01:23.5]} 17. Be3 {[%clk 0:02:37.1]} 17... Nd7 {[%clk
0:01:23.2]} 18. Nd5 {[%clk 0:02:32.7]} 18... exd5 {[%clk 0:00:38.5]} 19. exd5
{[%clk 0:02:33.6]} 19... Bf6 {[%clk 0:00:33.4]} 20. dxc6 {[%clk 0:02:32.8]}
20... Rxc6 {[%clk 0:00:33.3]} 21. b3 {[%clk 0:02:32.6]} 21... Re8 {[%clk
0:00:33.6]} 22. Bf2 {[%clk 0:02:32.6]} 22... g6 {[%clk 0:00:31.1]} 23. Bd3
{[%clk 0:02:32.5]} 23... Nc5 {[%clk 0:00:29.4]} 24. Bf1 {[%clk 0:02:27.5]} 24...
Ne6 {[%clk 0:00:24.5]} 25. g3 {[%clk 0:02:22.6]} 25... Rec8 {[%clk 0:00:20.4]}
26. Bg2 {[%clk 0:02:19.8]} 26... b5 {[%clk 0:00:18.6]} 27. f4 {[%clk 0:02:20]}
27... R6c7 {[%clk 0:00:17.4]} 28. Bb6 {[%clk 0:02:20.1]} 28... Rd7 {[%clk
0:00:14.2]} 29. cxb5 {[%clk 0:02:20.3]} 29... Rxc1 {[%clk 0:00:13.8]} 30. Rxc1
{[%clk 0:02:21.1]} 30... axb5 {[%clk 0:00:14.4]} 31. a4 {[%clk 0:02:10.8]} 31...
bxa4 {[%clk 0:00:12.3]} 32. bxa4 {[%clk 0:02:11.7]} 32... Nd4 {[%clk 0:00:12.7]}
33. Kf1 {[%clk 0:02:06.1]} 33... d5 {[%clk 0:00:09.7]} 34. Rd1 {[%clk 0:02:03]}
34... Nc2 {[%clk 0:00:08.2]} 35. Rxd5 {[%clk 0:01:59.5]} 35... Re7 {[%clk
0:00:08.7]} 36. Rd3 {[%clk 0:01:48.1]} 36... Nb4 {[%clk 0:00:08.1]} 37. Rb3
{[%clk 0:01:45.5]} 37... Na6 {[%clk 0:00:07.7]} 38. a5 {[%clk 0:01:44.2]} 38...
Re6 {[%clk 0:00:06.1]} 39. Bd5 {[%clk 0:01:43.1]} 39... Rd6 {[%clk 0:00:06.3]}
40. Bb7 {[%clk 0:01:40.5]} 40... Nb8 {[%clk 0:00:05.5]} 41. a6 {[%clk
0:01:40.9]} 41... Nxa6 {[%clk 0:00:05.6]} 42. Bxa6 {[%clk 0:01:40.6]} 42... Bd4
{[%clk 0:00:05.9]} 43. Bxd4 {[%clk 0:01:39.6]} 43... Rxd4 {[%clk 0:00:06.2]} 44.
Be2 {[%clk 0:01:39.6]} 44... h5 {[%clk 0:00:05.4]} 45. Kf2 {[%clk 0:01:39.6]}
45... Rd6 {[%clk 0:00:05.1]} 46. Rb5 {[%clk 0:01:38.7]} 46... Kg7 {[%clk
0:00:05.6]} 47. Rb2 {[%clk 0:01:32.3]} 47... Rc6 {[%clk 0:00:05.7]} 48. Ke3
{[%clk 0:01:32]} 48... Re6+ {[%clk 0:00:05.5]} 49. Kf3 {[%clk 0:01:31.6]} 49...
Re7 {[%clk 0:00:06.4]} 50. Bd3 {[%clk 0:01:31.8]} 50... Rd7 {[%clk 0:00:06.6]}
51. Be4 {[%clk 0:01:31.6]} 51... Rc7 {[%clk 0:00:06.9]} 52. Rb7 {[%clk 0:01:31]}
52... Rc3+ {[%clk 0:00:07]} 53. Kg2 {[%clk 0:01:31.4]} 53... Rc5 {[%clk
0:00:05.2]} 54. Rd7 {[%clk 0:01:31.1]} 54... Kf8 {[%clk 0:00:03.2]} 55. Rd8+
{[%clk 0:01:27.5]} 55... Ke7 {[%clk 0:00:03.3]} 56. Rd5 {[%clk 0:01:28.4]} 56...
Rc4 {[%clk 0:00:01.8]} 57. Re5+ {[%clk 0:01:27.8]} 57... Kf8 {[%clk 0:00:02]}
58. Bf3 {[%clk 0:01:25.9]} 58... Rc7 {[%clk 0:00:01.4]} 59. f5 {[%clk
0:01:25.6]} 1-0

[Event "*** Titled Tuesday Blitz"]
[Site "Chess.com"]
[Date "2020.04.07"]
[Round "4"]
[White "GGX0X0"]
[Black "IljaJoke"]
[Result "0-1"]
[WhiteElo "2326"]
[BlackElo "2507"]
[TimeControl "180+1"]
[EndTime "13:40:44 PDT"]
[Termination "IljaJoke won by checkmate"]

1. d4 {[%clk 0:03:00.9]} 1... Nf6 {[%clk 0:02:48.6]} 2. c4 {[%clk 0:03:00]} 2...
c5 {[%clk 0:02:48.4]} 3. d5 {[%clk 0:02:59.3]} 3... g6 {[%clk 0:02:48.5]} 4. Nc3
{[%clk 0:02:58]} 4... Bg7 {[%clk 0:02:47.5]} 5. e4 {[%clk 0:02:57.7]} 5... d6
{[%clk 0:02:47.8]} 6. h3 {[%clk 0:02:56.3]} 6... O-O {[%clk 0:02:46.4]} 7. Nf3
{[%clk 0:02:56]} 7... e6 {[%clk 0:02:42.1]} 8. Bd3 {[%clk 0:02:51.7]} 8... Nbd7
{[%clk 0:02:36.5]} 9. O-O {[%clk 0:02:50.2]} 9... e5 {[%clk 0:02:36.8]} 10. a3
{[%clk 0:02:46.7]} 10... h6 {[%clk 0:02:35.6]} 11. b4 {[%clk 0:02:45.2]} 11...
b6 {[%clk 0:02:36]} 12. Be3 {[%clk 0:02:31.5]} 12... Nh7 {[%clk 0:02:34.7]} 13.
Qd2 {[%clk 0:02:29.1]} 13... f5 {[%clk 0:02:34.9]} 14. Bxh6 {[%clk 0:02:22.8]}
14... f4 {[%clk 0:02:34.9]} 15. Bxg7 {[%clk 0:02:22.3]} 15... Kxg7 {[%clk
0:02:35.8]} 16. Nb5 {[%clk 0:02:05.7]} 16... Ndf6 {[%clk 0:02:35]} 17. bxc5
{[%clk 0:02:04.3]} 17... bxc5 {[%clk 0:02:35.9]} 18. Rab1 {[%clk 0:01:53.6]}
18... Nh5 {[%clk 0:02:32.1]} 19. Be2 {[%clk 0:01:28.7]} 19... a6 {[%clk
0:02:25.9]} 20. Nc3 {[%clk 0:01:27.4]} 20... Rh8 {[%clk 0:02:19.5]} 21. Nh2
{[%clk 0:01:25.7]} 21... Ng5 {[%clk 0:02:15.4]} 22. Bg4 {[%clk 0:01:24.6]} 22...
Bxg4 {[%clk 0:01:58.1]} 23. hxg4 {[%clk 0:01:18]} 23... Nf6 {[%clk 0:01:55.1]}
24. Rb7+ {[%clk 0:01:15.5]} 24... Kg8 {[%clk 0:01:37.3]} 25. Rfb1 {[%clk
0:01:12.5]} 25... Rh7 {[%clk 0:01:23.9]} 26. f3 {[%clk 0:01:03.5]} 26... Nf7
{[%clk 0:00:59.7]} 27. Qb2 {[%clk 0:00:56.7]} 27... Nd7 {[%clk 0:00:57.5]} 28.
Qf2 {[%clk 0:00:48.1]} 28... Rb8 {[%clk 0:00:53.1]} 29. Rxb8 {[%clk 0:00:47.1]}
29... Nxb8 {[%clk 0:00:54]} 30. Nf1 {[%clk 0:00:42.6]} 30... Ng5 {[%clk
0:00:52.1]} 31. Qb2 {[%clk 0:00:40.1]} 31... Nd7 {[%clk 0:00:52.1]} 32. Qb7
{[%clk 0:00:39]} 32... Nxf3+ {[%clk 0:00:45]} 33. gxf3 {[%clk 0:00:38.1]} 33...
Qh4 {[%clk 0:00:45.5]} 34. Qxd7 {[%clk 0:00:24.5]} 34... Rxd7 {[%clk 0:00:44.7]}
35. Rb8+ {[%clk 0:00:21.9]} 35... Kg7 {[%clk 0:00:44.5]} 36. Na4 {[%clk
0:00:21.8]} 36... Qe1 {[%clk 0:00:39.2]} 37. Nb6 {[%clk 0:00:20.3]} 37... Rf7
{[%clk 0:00:39.2]} 38. Rd8 {[%clk 0:00:20]} 38... Qc3 {[%clk 0:00:28.5]} 39.
Rxd6 {[%clk 0:00:19.6]} 39... Qxf3 {[%clk 0:00:28.7]} 40. Re6 {[%clk 0:00:18.8]}
40... Qxg4+ {[%clk 0:00:28.6]} 41. Kf2 {[%clk 0:00:18.6]} 41... f3 {[%clk
0:00:26.6]} 42. Nd2 {[%clk 0:00:18.3]} 42... Qg2+ {[%clk 0:00:25.9]} 43. Ke3
{[%clk 0:00:18.1]} 43... Qe2# {[%clk 0:00:26.8]} 0-1

[Event "*** Titled Tuesday Blitz"]
[Site "Chess.com"]
[Date "2020.04.07"]
[Round "4"]
[White "MasterKroket"]
[Black "Opening_Prep"]
[Result "1-0"]
[WhiteElo "2468"]
[BlackElo "2274"]
[TimeControl "180+1"]
[EndTime "13:40:44 PDT"]
[Termination "MasterKroket won on time"]

1. d4 {[%clk 0:03:00.9]} 1... Nf6 {[%clk 0:02:59.4]} 2. c4 {[%clk 0:03:01.5]}
2... e6 {[%clk 0:02:59.4]} 3. Nf3 {[%clk 0:03:01.4]} 3... d5 {[%clk 0:02:58.8]}
4. Nc3 {[%clk 0:03:01.5]} 4... a6 {[%clk 0:02:59.1]} 5. c5 {[%clk 0:02:52.7]}
5... b6 {[%clk 0:02:50.9]} 6. cxb6 {[%clk 0:02:50.1]} 6... cxb6 {[%clk
0:02:51.8]} 7. Bf4 {[%clk 0:02:48.4]} 7... Bd6 {[%clk 0:02:48.9]} 8. e3 {[%clk
0:02:45.4]} 8... O-O {[%clk 0:02:48.2]} 9. Bd3 {[%clk 0:02:44.7]} 9... Bb7
{[%clk 0:02:48.3]} 10. Ne5 {[%clk 0:02:41.5]} 10... Nc6 {[%clk 0:02:46.2]} 11.
Qf3 {[%clk 0:02:37]} 11... b5 {[%clk 0:02:37.3]} 12. Qh3 {[%clk 0:02:34.2]}
12... h6 {[%clk 0:02:29.3]} 13. Ne2 {[%clk 0:02:15.1]} 13... Rc8 {[%clk
0:02:11.6]} 14. g4 {[%clk 0:02:07.2]} 14... Bxe5 {[%clk 0:02:02]} 15. dxe5
{[%clk 0:02:07]} 15... Ne4 {[%clk 0:02:02.2]} 16. Bxe4 {[%clk 0:01:48.5]} 16...
dxe4 {[%clk 0:02:00.7]} 17. g5 {[%clk 0:01:48.7]} 17... hxg5 {[%clk 0:01:46.1]}
18. Rg1 {[%clk 0:01:49]} 18... f6 {[%clk 0:00:54.6]} 19. Qxe6+ {[%clk
0:01:43.9]} 19... Rf7 {[%clk 0:00:54.7]} 20. exf6 {[%clk 0:01:24.7]} 20... gxf6
{[%clk 0:00:50.1]} 21. Rd1 {[%clk 0:01:16.3]} 21... Qe7 {[%clk 0:00:39.8]} 22.
Qf5 {[%clk 0:01:12.1]} 22... Nb4 {[%clk 0:00:34.2]} 23. Bxg5 {[%clk 0:00:52.6]}
23... fxg5 {[%clk 0:00:26.5]} 24. Rxg5+ {[%clk 0:00:51.9]} 24... Rg7 {[%clk
0:00:23.8]} 25. Rxg7+ {[%clk 0:00:46.2]} 25... Qxg7 {[%clk 0:00:19.8]} 26. Rd7
{[%clk 0:00:46.8]} 26... Nd3+ {[%clk 0:00:16.5]} 27. Kf1 {[%clk 0:00:39.2]}
27... Qh6 {[%clk 0:00:08.2]} 28. Rxb7 {[%clk 0:00:24.8]} 28... Rf8 {[%clk
0:00:07.4]} 29. Qg4+ {[%clk 0:00:17.4]} 29... Kh8 {[%clk 0:00:07.5]} 30. Nf4
{[%clk 0:00:11.2]} 30... Nxf4 {[%clk 0:00:04.9]} 31. exf4 {[%clk 0:00:11.6]} 1-0

[Event "*** Titled Tuesday Blitz"]
[Site "Chess.com"]
[Date "2020.04.07"]
[Round "4"]
[White "GM-AndreyOrlov"]
[Black "Mikhail_Golubev"]
[Result "1-0"]
[WhiteElo "2737"]
[BlackElo "2512"]
[TimeControl "180+1"]
[EndTime "13:40:46 PDT"]
[Termination "GM-AndreyOrlov won on time"]

1. e4 {[%clk 0:03:00.9]} 1... c5 {[%clk 0:02:59.4]} 2. Nc3 {[%clk 0:03:01]} 2...
Nc6 {[%clk 0:02:58.2]} 3. g3 {[%clk 0:03:01.4]} 3... g6 {[%clk 0:02:58]} 4. Bg2
{[%clk 0:03:02.3]} 4... Bg7 {[%clk 0:02:58.5]} 5. d3 {[%clk 0:03:02.9]} 5... e6
{[%clk 0:02:58.8]} 6. Be3 {[%clk 0:03:03.5]} 6... Nd4 {[%clk 0:02:58.9]} 7. Qd2
{[%clk 0:03:03.8]} 7... Ne7 {[%clk 0:02:54.3]} 8. Nd1 {[%clk 0:03:03.2]} 8... d5
{[%clk 0:02:44.4]} 9. c3 {[%clk 0:03:02.2]} 9... Ndc6 {[%clk 0:02:29.4]} 10.
exd5 {[%clk 0:03:02.2]} 10... exd5 {[%clk 0:02:20.9]} 11. Bxc5 {[%clk 0:03:02]}
11... d4 {[%clk 0:02:20.9]} 12. c4 {[%clk 0:02:48.4]} 12... O-O {[%clk
0:02:19.9]} 13. Nf3 {[%clk 0:02:48.1]} 13... Re8 {[%clk 0:02:13.3]} 14. O-O
{[%clk 0:02:48.1]} 14... Nf5 {[%clk 0:02:06.4]} 15. b4 {[%clk 0:02:35.3]} 15...
b6 {[%clk 0:01:57.7]} 16. b5 {[%clk 0:02:35.4]} 16... bxc5 {[%clk 0:01:52.8]}
17. bxc6 {[%clk 0:02:35.6]} 17... Bh6 {[%clk 0:01:37.6]} 18. Qc2 {[%clk
0:02:31.8]} 18... Qc7 {[%clk 0:01:31.2]} 19. Nb2 {[%clk 0:02:26.9]} 19... Ne7
{[%clk 0:01:25.5]} 20. Na4 {[%clk 0:02:26.1]} 20... Nxc6 {[%clk 0:01:24.7]} 21.
a3 {[%clk 0:02:17.6]} 21... Qa5 {[%clk 0:01:11.6]} 22. Rab1 {[%clk 0:02:09.7]}
22... Ba6 {[%clk 0:00:56.1]} 23. h4 {[%clk 0:01:50.3]} 23... Rac8 {[%clk
0:00:54]} 24. Ng5 {[%clk 0:01:48.8]} 24... Bxg5 {[%clk 0:00:42.1]} 25. hxg5
{[%clk 0:01:48.9]} 25... Ne5 {[%clk 0:00:41.4]} 26. Bd5 {[%clk 0:01:45.1]} 26...
Rb8 {[%clk 0:00:34.3]} 27. Kg2 {[%clk 0:01:34.9]} 27... Qc7 {[%clk 0:00:31.4]}
28. Rfe1 {[%clk 0:01:29.2]} 28... Kg7 {[%clk 0:00:21.9]} 29. Rxb8 {[%clk
0:01:20.8]} 29... Rxb8 {[%clk 0:00:19.7]} 30. Qe2 {[%clk 0:01:20.4]} 30... Nc6
{[%clk 0:00:11]} 31. Nxc5 {[%clk 0:01:19.1]} 31... Bc8 {[%clk 0:00:11.2]} 32.
Qe4 {[%clk 0:01:10.9]} 32... Bf5 {[%clk 0:00:10.5]} 33. Qf4 {[%clk 0:01:07.6]}
33... Qxf4 {[%clk 0:00:09.6]} 34. gxf4 {[%clk 0:01:08.5]} 34... Na5 {[%clk
0:00:09]} 35. Re7 {[%clk 0:01:06.8]} 35... Rf8 {[%clk 0:00:09]} 36. Rxa7 {[%clk
0:01:06.4]} 36... Rc8 {[%clk 0:00:06.7]} 37. Rxf7+ {[%clk 0:01:04.5]} 37... Kh8
{[%clk 0:00:06]} 38. Ne4 {[%clk 0:00:58.1]} 38... Bxe4+ {[%clk 0:00:03.3]} 39.
Bxe4 {[%clk 0:00:58]} 39... Nb3 {[%clk 0:00:03.5]} 40. f5 {[%clk 0:00:49.7]}
40... Nc5 {[%clk 0:00:02.4]} 41. fxg6 {[%clk 0:00:49.9]} 41... Nxe4 {[%clk
0:00:02.3]} 42. Rxh7+ {[%clk 0:00:49.8]} 42... Kg8 {[%clk 0:00:02]} 43. dxe4
{[%clk 0:00:49.8]} 43... Rxc4 {[%clk 0:00:01.9]} 44. Rd7 {[%clk 0:00:49.9]}
44... Ra4 {[%clk 0:00:01.7]} 45. f3 {[%clk 0:00:48.5]} 1-0

[Event "*** Titled Tuesday Blitz"]
[Site "Chess.com"]
[Date "2020.04.07"]
[Round "4"]
[White "olksuna"]
[Black "Antipov_Mikhail_Al"]
[Result "0-1"]
[WhiteElo "2598"]
[BlackElo "2950"]
[TimeControl "180+1"]
[EndTime "13:40:48 PDT"]
[Termination "Antipov_Mikhail_Al won by resignation"]

1. c4 {[%clk 0:03:00.9]} 1... g6 {[%clk 0:02:58.8]} 2. Nc3 {[%clk 0:03:00.4]}
2... Bg7 {[%clk 0:02:59]} 3. g3 {[%clk 0:03:00.8]} 3... c5 {[%clk 0:02:57.8]} 4.
Bg2 {[%clk 0:03:01]} 4... h5 {[%clk 0:02:58.2]} 5. d3 {[%clk 0:02:58.6]} 5... h4
{[%clk 0:02:57.3]} 6. Qd2 {[%clk 0:02:57.9]} 6... Nc6 {[%clk 0:02:28.6]} 7. b3
{[%clk 0:02:51.9]} 7... d6 {[%clk 0:02:27.9]} 8. Bb2 {[%clk 0:02:51.4]} 8... Nh6
{[%clk 0:02:21.4]} 9. Bxc6+ {[%clk 0:02:47]} 9... bxc6 {[%clk 0:02:21.3]} 10.
O-O-O {[%clk 0:02:45.3]} 10... Nf5 {[%clk 0:02:17.8]} 11. g4 {[%clk 0:02:32.1]}
11... Nd4 {[%clk 0:02:12.5]} 12. h3 {[%clk 0:02:27]} 12... e5 {[%clk 0:02:09.5]}
13. e3 {[%clk 0:02:24.2]} 13... a5 {[%clk 0:02:03.5]} 14. Kb1 {[%clk 0:02:16.7]}
14... Ne6 {[%clk 0:02:03.2]} 15. Nge2 {[%clk 0:02:12.8]} 15... O-O {[%clk
0:01:46.7]} 16. f4 {[%clk 0:02:10.2]} 16... exf4 {[%clk 0:01:45.8]} 17. exf4
{[%clk 0:02:08.9]} 17... Nd4 {[%clk 0:01:45.9]} 18. f5 {[%clk 0:02:00.9]} 18...
Re8 {[%clk 0:01:41]} 19. Rdf1 {[%clk 0:01:44.4]} 19... a4 {[%clk 0:00:56.5]} 20.
Nxd4 {[%clk 0:01:32.2]} 20... cxd4 {[%clk 0:00:57.4]} 21. Ne4 {[%clk 0:00:57.8]}
21... axb3 {[%clk 0:00:54.5]} 22. axb3 {[%clk 0:00:44.2]} 22... d5 {[%clk
0:00:50.7]} 23. f6 {[%clk 0:00:29.9]} 23... Bf8 {[%clk 0:00:26.1]} 24. Ng5
{[%clk 0:00:27.3]} 24... Qb6 {[%clk 0:00:22.6]} 25. Qf4 {[%clk 0:00:14.3]} 25...
Qxb3 {[%clk 0:00:14.5]} 26. Qc7 {[%clk 0:00:13.8]} 26... Qxd3+ {[%clk 0:00:13]}
27. Kc1 {[%clk 0:00:11.7]} 27... Qxc4+ {[%clk 0:00:13.2]} 28. Kb1 {[%clk
0:00:11.1]} 28... Qd3+ {[%clk 0:00:13.1]} 29. Kc1 {[%clk 0:00:11.4]} 29... Be6
{[%clk 0:00:13]} 30. Re1 {[%clk 0:00:08.3]} 30... Bh6 {[%clk 0:00:12.4]} 31. Qf4
{[%clk 0:00:04.1]} 31... Reb8 {[%clk 0:00:11.5]} 0-1

[Event "*** Titled Tuesday Blitz"]
[Site "Chess.com"]
[Date "2020.04.07"]
[Round "4"]
[White "djano"]
[Black "dmvlad"]
[Result "1-0"]
[WhiteElo "2483"]
[BlackElo "2308"]
[TimeControl "180+1"]
[EndTime "13:40:48 PDT"]
[Termination "djano won on time"]

1. g3 {[%clk 0:03:00.9]} 1... Nf6 {[%clk 0:02:59.4]} 2. Bg2 {[%clk 0:03:01.2]}
2... g6 {[%clk 0:03:00.1]} 3. Nf3 {[%clk 0:03:01.7]} 3... Bg7 {[%clk 0:03:00.7]}
4. O-O {[%clk 0:03:02.2]} 4... O-O {[%clk 0:03:00.2]} 5. d4 {[%clk 0:03:03.1]}
5... d6 {[%clk 0:03:00]} 6. c4 {[%clk 0:03:02.1]} 6... Nc6 {[%clk 0:02:59.7]} 7.
Nc3 {[%clk 0:03:02.2]} 7... a6 {[%clk 0:02:58]} 8. b3 {[%clk 0:02:59]} 8... Rb8
{[%clk 0:02:57.5]} 9. d5 {[%clk 0:02:59.5]} 9... Na5 {[%clk 0:02:57]} 10. Bg5
{[%clk 0:02:56.6]} 10... c5 {[%clk 0:02:49.8]} 11. dxc6 {[%clk 0:02:55.9]} 11...
bxc6 {[%clk 0:02:46.5]} 12. Rc1 {[%clk 0:02:50.4]} 12... c5 {[%clk 0:02:43]} 13.
Qd2 {[%clk 0:02:47.9]} 13... Bb7 {[%clk 0:02:29.7]} 14. Bh6 {[%clk 0:02:45.5]}
14... Nc6 {[%clk 0:02:27.8]} 15. Bxg7 {[%clk 0:02:39.9]} 15... Kxg7 {[%clk
0:02:28.7]} 16. Nd5 {[%clk 0:02:37.9]} 16... Nxd5 {[%clk 0:02:20.4]} 17. cxd5
{[%clk 0:02:37.8]} 17... Na7 {[%clk 0:02:16.8]} 18. e4 {[%clk 0:02:35.7]} 18...
f6 {[%clk 0:02:11.5]} 19. Ne1 {[%clk 0:02:29.9]} 19... Qd7 {[%clk 0:02:04.4]}
20. a4 {[%clk 0:02:27.6]} 20... e5 {[%clk 0:02:02.2]} 21. dxe6 {[%clk
0:02:25.3]} 21... Qxe6 {[%clk 0:02:02.3]} 22. Qc3 {[%clk 0:02:14.4]} 22... Nc6
{[%clk 0:01:56.5]} 23. Nc2 {[%clk 0:02:10]} 23... Rfe8 {[%clk 0:01:48.7]} 24.
Rfd1 {[%clk 0:02:05.2]} 24... Red8 {[%clk 0:01:43.9]} 25. h4 {[%clk 0:02:03.8]}
25... Qe5 {[%clk 0:01:41.5]} 26. Qd2 {[%clk 0:01:58.8]} 26... Bc8 {[%clk
0:01:37.2]} 27. Qe3 {[%clk 0:01:50]} 27... Qb2 {[%clk 0:01:20.9]} 28. b4 {[%clk
0:01:05]} 28... Nxb4 {[%clk 0:01:11.7]} 29. Nxb4 {[%clk 0:00:58.8]} 29... Rxb4
{[%clk 0:01:11.4]} 30. Rxc5 {[%clk 0:00:51.6]} 30... Bg4 {[%clk 0:00:37]} 31.
Rc7+ {[%clk 0:00:50]} 31... Kg8 {[%clk 0:00:21.7]} 32. Qh6 {[%clk 0:00:46.5]}
32... Bd7 {[%clk 0:00:19.8]} 33. Bh3 {[%clk 0:00:39.6]} 33... Qb3 {[%clk
0:00:15.1]} 34. Rdc1 {[%clk 0:00:31.7]} 34... Qf7 {[%clk 0:00:02.7]} 35. Bxd7
{[%clk 0:00:30.7]} 1-0

[Event "*** Titled Tuesday Blitz"]
[Site "Chess.com"]
[Date "2020.04.07"]
[Round "4"]
[White "lachesisQ"]
[Black "Oneofmyturns"]
[Result "1-0"]
[WhiteElo "3140"]
[BlackElo "2605"]
[TimeControl "180+1"]
[EndTime "13:40:50 PDT"]
[Termination "lachesisQ won by resignation"]

1. c4 {[%clk 0:03:00.1]} 1... e6 {[%clk 0:03:00]} 2. Nc3 {[%clk 0:02:57.7]} 2...
d5 {[%clk 0:03:00.9]} 3. e3 {[%clk 0:02:57.9]} 3... Nf6 {[%clk 0:03:00.7]} 4.
Nf3 {[%clk 0:02:57.9]} 4... c5 {[%clk 0:02:59.3]} 5. cxd5 {[%clk 0:02:57.7]}
5... exd5 {[%clk 0:03:00.1]} 6. b3 {[%clk 0:02:55.5]} 6... Nc6 {[%clk
0:02:58.9]} 7. Bb5 {[%clk 0:02:54.5]} 7... d4 {[%clk 0:02:58.4]} 8. Ne2 {[%clk
0:02:44.5]} 8... dxe3 {[%clk 0:02:44.9]} 9. fxe3 {[%clk 0:02:38.8]} 9... Bd6
{[%clk 0:02:43.7]} 10. Bb2 {[%clk 0:02:37]} 10... O-O {[%clk 0:02:43.1]} 11. O-O
{[%clk 0:02:34.8]} 11... Qe7 {[%clk 0:02:25.1]} 12. Bxc6 {[%clk 0:02:19.3]}
12... bxc6 {[%clk 0:02:26]} 13. Qc2 {[%clk 0:02:19.5]} 13... h6 {[%clk
0:02:00.1]} 14. Ng3 {[%clk 0:01:58.7]} 14... Bxg3 {[%clk 0:01:42.7]} 15. Bxf6
{[%clk 0:01:56.9]} 15... Qxf6 {[%clk 0:01:29.9]} 16. hxg3 {[%clk 0:01:56.8]}
16... Qd6 {[%clk 0:01:13.6]} 17. Kh2 {[%clk 0:01:46.5]} 17... Bg4 {[%clk
0:01:09]} 18. Rac1 {[%clk 0:01:45.3]} 18... Rad8 {[%clk 0:01:01.4]} 19. Rf2
{[%clk 0:01:45.3]} 19... Qf6 {[%clk 0:00:45.1]} 20. Qxc5 {[%clk 0:01:40.1]}
20... Rd5 {[%clk 0:00:45.5]} 21. Qc4 {[%clk 0:01:11]} 21... Be6 {[%clk
0:00:28.9]} 22. Qf4 {[%clk 0:00:52.8]} 22... Rf5 {[%clk 0:00:24.9]} 23. Qd4
{[%clk 0:00:47.3]} 23... Rh5+ {[%clk 0:00:18.5]} 24. Kg1 {[%clk 0:00:46.8]}
24... Qg6 {[%clk 0:00:19]} 25. Qf4 {[%clk 0:00:43.9]} 25... Rf5 {[%clk
0:00:17.1]} 26. Nh4 {[%clk 0:00:43.9]} 26... Rxf4 {[%clk 0:00:17.1]} 27. Nxg6
{[%clk 0:00:41.9]} 27... Rxf2 {[%clk 0:00:16.8]} 28. Ne7+ {[%clk 0:00:42.5]}
28... Kh7 {[%clk 0:00:15.8]} 29. Kxf2 {[%clk 0:00:43.4]} 29... Rd8 {[%clk
0:00:10.9]} 30. d4 {[%clk 0:00:42.1]} 30... a5 {[%clk 0:00:09]} 31. Nxc6 {[%clk
0:00:40.2]} 31... Ra8 {[%clk 0:00:09.5]} 32. e4 {[%clk 0:00:28.8]} 32... a4
{[%clk 0:00:07.1]} 33. d5 {[%clk 0:00:29.2]} 33... axb3 {[%clk 0:00:04.8]} 34.
axb3 {[%clk 0:00:28.6]} 34... Ra2+ {[%clk 0:00:05.7]} 35. Kf3 {[%clk 0:00:27.9]}
35... Bg4+ {[%clk 0:00:06.3]} 36. Kxg4 {[%clk 0:00:27.1]} 1-0